[Event "Late-Titled-Tuesday-Blitz-April-30-2024"]
[Site "Chess.com"]
[Date "2024.04.30"]
[Round "9"]
[White "rhungaski"]
[Black "sassassasss"]
[Result "0-1"]
[WhiteElo "2542"]
[BlackElo "2411"]
[TimeControl "180+1"]
[EndTime "15:44:36 PDT"]
[Termination "sassassasss won on time"]

1. b3 {[%clk 0:02:59.2]} 1... Nc6 {[%clk 0:02:59.2]} 2. Bb2 {[%clk 0:02:59.4]}
2... Nf6 {[%clk 0:02:59.7]} 3. c4 {[%clk 0:02:58.5]} 3... e5 {[%clk 0:02:59.1]}
4. e3 {[%clk 0:02:58.9]} 4... d6 {[%clk 0:02:58]} 5. a3 {[%clk 0:02:54.6]} 5...
Be7 {[%clk 0:02:57.8]} 6. b4 {[%clk 0:02:52.2]} 6... a6 {[%clk 0:02:57.2]} 7.
Qc2 {[%clk 0:02:35.2]} 7... O-O {[%clk 0:02:54.9]} 8. d3 {[%clk 0:02:28.8]} 8...
Bf5 {[%clk 0:02:53]} 9. Nd2 {[%clk 0:02:28.5]} 9... Bg6 {[%clk 0:02:50.8]} 10.
Ngf3 {[%clk 0:02:26.4]} 10... h6 {[%clk 0:02:47.9]} 11. Be2 {[%clk 0:02:26.3]}
11... Re8 {[%clk 0:02:35.6]} 12. O-O {[%clk 0:02:25.9]} 12... Bf8 {[%clk
0:02:35.5]} 13. e4 {[%clk 0:02:03.2]} 13... Nh5 {[%clk 0:02:32.8]} 14. g3 {[%clk
0:02:03.1]} 14... Nf6 {[%clk 0:02:27.8]} 15. Nh4 {[%clk 0:01:54.6]} 15... Bh7
{[%clk 0:02:27.1]} 16. Nb3 {[%clk 0:01:41.5]} 16... Qd7 {[%clk 0:02:13]} 17.
Rae1 {[%clk 0:01:30.7]} 17... Qh3 {[%clk 0:01:59.4]} 18. Bc3 {[%clk 0:01:23]}
18... Ng4 {[%clk 0:01:58.6]} 19. Bxg4 {[%clk 0:01:22.2]} 19... Qxg4 {[%clk
0:01:58.6]} 20. f3 {[%clk 0:01:20.8]} 20... Qd7 {[%clk 0:01:56.9]} 21. Qg2
{[%clk 0:01:12.9]} 21... Be7 {[%clk 0:01:56.3]} 22. f4 {[%clk 0:01:08.1]} 22...
Bf6 {[%clk 0:01:18.7]} 23. Kh1 {[%clk 0:00:52.4]} 23... Qd8 {[%clk 0:01:17.2]}
24. Rg1 {[%clk 0:00:38.2]} 24... Kh8 {[%clk 0:01:11.6]} 25. Qf3 {[%clk
0:00:31.3]} 25... Qe7 {[%clk 0:00:56.3]} 26. Nf5 {[%clk 0:00:19.3]} 26... Bxf5
{[%clk 0:00:48.4]} 27. exf5 {[%clk 0:00:20.2]} 27... Qd7 {[%clk 0:00:48.3]} 28.
Qh5 {[%clk 0:00:18.3]} 28... Nd4 {[%clk 0:00:39.6]} 29. Bxd4 {[%clk 0:00:18.1]}
29... exd4 {[%clk 0:00:39.7]} 30. Nd2 {[%clk 0:00:18.6]} 30... Re3 {[%clk
0:00:38.8]} 31. Rxe3 {[%clk 0:00:16]} 31... dxe3 {[%clk 0:00:38.6]} 32. Ne4
{[%clk 0:00:16.7]} 32... Bd4 {[%clk 0:00:36]} 33. f6 {[%clk 0:00:16.7]} 33...
Kg8 {[%clk 0:00:23.7]} 34. fxg7 {[%clk 0:00:16.7]} 34... Bxg7 {[%clk 0:00:24.2]}
35. f5 {[%clk 0:00:15.6]} 35... Qe7 {[%clk 0:00:20.8]} 36. f6 {[%clk 0:00:14.5]}
36... Bxf6 {[%clk 0:00:20.5]} 37. Qxh6 {[%clk 0:00:15.1]} 37... Bg7 {[%clk
0:00:20.4]} 38. Qh5 {[%clk 0:00:11.3]} 38... c6 {[%clk 0:00:19.9]} 39. Re1
{[%clk 0:00:10.7]} 39... d5 {[%clk 0:00:18.8]} 40. cxd5 {[%clk 0:00:10.3]} 40...
cxd5 {[%clk 0:00:19.7]} 41. Qxd5 {[%clk 0:00:10.7]} 41... Rd8 {[%clk 0:00:19.2]}
42. Qf5 {[%clk 0:00:10.3]} 42... Rxd3 {[%clk 0:00:18.2]} 43. Ng5 {[%clk
0:00:10.5]} 43... Rd2 {[%clk 0:00:15.7]} 44. Rf1 {[%clk 0:00:08]} 44... e2
{[%clk 0:00:10.7]} 45. Re1 {[%clk 0:00:02.2]} 45... Rd1 {[%clk 0:00:10.4]} 46.
Qc8+ {[%clk 0:00:00.5]} 46... Bf8 {[%clk 0:00:10.5]} 0-1

[Event "Late-Titled-Tuesday-Blitz-April-30-2024"]
[Site "Chess.com"]
[Date "2024.04.30"]
[Round "9"]
[White "igorknyazev"]
[Black "jactorres"]
[Result "0-1"]
[WhiteElo "2235"]
[BlackElo "2410"]
[TimeControl "180+1"]
[EndTime "15:44:38 PDT"]
[Termination "jactorres won by resignation"]

1. e4 {[%clk 0:03:00.9]} 1... e5 {[%clk 0:02:08.8]} 2. Nf3 {[%clk 0:02:48.4]}
2... Nc6 {[%clk 0:02:07.5]} 3. Bb5 {[%clk 0:02:48.8]} 3... a6 {[%clk 0:02:07.2]}
4. Bxc6 {[%clk 0:02:49.1]} 4... dxc6 {[%clk 0:02:07]} 5. Nc3 {[%clk 0:02:48.4]}
5... f6 {[%clk 0:01:52]} 6. d4 {[%clk 0:02:46.2]} 6... exd4 {[%clk 0:01:52.9]}
7. Nxd4 {[%clk 0:02:46]} 7... c5 {[%clk 0:01:53.6]} 8. Nde2 {[%clk 0:02:43.8]}
8... Qxd1+ {[%clk 0:01:53.7]} 9. Nxd1 {[%clk 0:02:43.5]} 9... Bd7 {[%clk
0:01:54.1]} 10. O-O {[%clk 0:02:43]} 10... O-O-O {[%clk 0:01:54.8]} 11. f4
{[%clk 0:02:39.1]} 11... Nh6 {[%clk 0:01:48.9]} 12. h3 {[%clk 0:02:37.1]} 12...
Nf7 {[%clk 0:01:47.7]} 13. Ne3 {[%clk 0:02:34.2]} 13... h5 {[%clk 0:01:47.2]}
14. Nd5 {[%clk 0:02:28.9]} 14... Bc6 {[%clk 0:01:42.3]} 15. c4 {[%clk
0:02:20.9]} 15... Nd6 {[%clk 0:01:37.1]} 16. e5 {[%clk 0:02:10.2]} 16... fxe5
{[%clk 0:01:33]} 17. fxe5 {[%clk 0:02:06.2]} 17... Nxc4 {[%clk 0:01:33.1]} 18.
Ndf4 {[%clk 0:02:00.6]} 18... Nxe5 {[%clk 0:01:14.5]} 19. Ne6 {[%clk 0:01:41.9]}
19... Re8 {[%clk 0:01:11.6]} 20. N2f4 {[%clk 0:01:40.2]} 20... Bd7 {[%clk
0:01:03]} 21. Nxf8 {[%clk 0:01:36.8]} 21... Rexf8 {[%clk 0:00:57.7]} 22. Be3
{[%clk 0:01:33.7]} 22... b6 {[%clk 0:00:45.9]} 23. b3 {[%clk 0:01:28.3]} 23...
g5 {[%clk 0:00:34.1]} 24. Nd5 {[%clk 0:01:25.9]} 24... Be6 {[%clk 0:00:16.9]}
25. Ne7+ {[%clk 0:01:19.4]} 25... Kb8 {[%clk 0:00:17]} 26. Bxg5 {[%clk
0:01:16.1]} 26... Rxf1+ {[%clk 0:00:13.7]} 27. Rxf1 {[%clk 0:01:15.4]} 27... Re8
{[%clk 0:00:12.8]} 28. Re1 {[%clk 0:01:09.5]} 28... Nf7 {[%clk 0:00:10.2]} 29.
Rxe6 {[%clk 0:01:04.9]} 29... Nxg5 {[%clk 0:00:10.1]} 30. Nc6+ {[%clk
0:01:05.3]} 30... Kb7 {[%clk 0:00:08.9]} 31. Rxe8 {[%clk 0:01:06.2]} 31... Kxc6
{[%clk 0:00:09.2]} 32. Re5 {[%clk 0:01:05.5]} 32... Nf7 {[%clk 0:00:04.2]} 33.
Rxh5 {[%clk 0:01:06.4]} 33... Nd6 {[%clk 0:00:02.4]} 34. g4 {[%clk 0:01:05.6]}
34... b5 {[%clk 0:00:02.5]} 35. g5 {[%clk 0:01:05.9]} 35... c4 {[%clk
0:00:02.8]} 36. bxc4 {[%clk 0:01:04.8]} 36... bxc4 {[%clk 0:00:02.6]} 37. Kf1
{[%clk 0:00:59]} 37... c3 {[%clk 0:00:01.7]} 38. Ke2 {[%clk 0:00:59.5]} 38... c2
{[%clk 0:00:01.1]} 39. Kd2 {[%clk 0:00:59.7]} 39... Kd5 {[%clk 0:00:00.7]} 40.
g6+ {[%clk 0:00:59.5]} 40... Ke6 {[%clk 0:00:01.2]} 41. Rg5 {[%clk 0:00:58.9]}
41... Ne4+ {[%clk 0:00:01.4]} 42. Kxc2 {[%clk 0:00:57.3]} 42... Nxg5 {[%clk
0:00:02.1]} 43. h4 {[%clk 0:00:57.3]} 43... Ne4 {[%clk 0:00:01.8]} 44. Kd3
{[%clk 0:00:56.5]} 44... Nf6 {[%clk 0:00:01.4]} 45. h5 {[%clk 0:00:57.4]} 45...
Nxh5 {[%clk 0:00:01.4]} 46. Ke4 {[%clk 0:00:57.8]} 46... Ng7 {[%clk 0:00:01.6]}
47. Kf4 {[%clk 0:00:57.8]} 47... Kf6 {[%clk 0:00:01.7]} 48. a4 {[%clk
0:00:55.7]} 48... Kxg6 {[%clk 0:00:02.6]} 49. Ke4 {[%clk 0:00:56.4]} 49... Kf6
{[%clk 0:00:03.1]} 50. Kd5 {[%clk 0:00:57.3]} 50... Ke7 {[%clk 0:00:03.3]} 51.
Kc6 {[%clk 0:00:58.1]} 51... Kd8 {[%clk 0:00:03.6]} 52. Kb7 {[%clk 0:00:59]}
52... a5 {[%clk 0:00:03.4]} 53. Ka6 {[%clk 0:00:59.9]} 53... Kd7 {[%clk
0:00:02.3]} 54. Kxa5 {[%clk 0:01:00.8]} 54... Ne6 {[%clk 0:00:02.8]} 55. Ka6
{[%clk 0:01:01.1]} 55... Nc5+ {[%clk 0:00:03.1]} 56. Kb5 {[%clk 0:01:00.9]}
56... Kd6 {[%clk 0:00:03.5]} 57. a5 {[%clk 0:01:01.2]} 57... Nb7 {[%clk
0:00:02]} 58. Ka6 {[%clk 0:01:00.3]} 58... Nc5+ {[%clk 0:00:02.1]} 59. Kb5
{[%clk 0:01:00.6]} 59... Kd5 {[%clk 0:00:01.9]} 60. Kb4 {[%clk 0:00:59.3]} 60...
c6 {[%clk 0:00:02.3]} 61. Kc3 {[%clk 0:00:59.3]} 61... Na6 {[%clk 0:00:02.6]}
62. Kb3 {[%clk 0:00:59.4]} 62... c5 {[%clk 0:00:03.5]} 63. Ka4 {[%clk
0:01:00.2]} 63... Kc6 {[%clk 0:00:03.8]} 64. Kb3 {[%clk 0:00:59.6]} 64... Kb5
{[%clk 0:00:04.7]} 65. Kc3 {[%clk 0:01:00.2]} 65... Kxa5 {[%clk 0:00:05]} 66.
Kc4 {[%clk 0:01:01.1]} 66... Kb6 {[%clk 0:00:05.4]} 67. Kd5 {[%clk 0:01:01.5]}
67... Kb5 {[%clk 0:00:05.7]} 68. Ke4 {[%clk 0:01:02.4]} 68... Nb4 {[%clk
0:00:06.1]} 69. Ke3 {[%clk 0:01:02.5]} 69... Kc4 {[%clk 0:00:06]} 70. Kd2 {[%clk
0:01:03.4]} 70... Kb3 {[%clk 0:00:06]} 71. Kc1 {[%clk 0:01:04.3]} 71... Nc6
{[%clk 0:00:06]} 72. Kb1 {[%clk 0:01:05.2]} 72... c4 {[%clk 0:00:06.4]} 73. Ka1
{[%clk 0:01:06.1]} 73... c3 {[%clk 0:00:06]} 74. Kb1 {[%clk 0:01:07]} 74... Nb8
{[%clk 0:00:05.5]} 75. Kc1 {[%clk 0:01:07.9]} 75... c2 {[%clk 0:00:05.1]} 76.
Kd2 {[%clk 0:01:07.9]} 76... Kb2 {[%clk 0:00:06]} 77. Kd3 {[%clk 0:01:08.6]}
77... c1=Q {[%clk 0:00:06.6]} 0-1

[Event "Late-Titled-Tuesday-Blitz-April-30-2024"]
[Site "Chess.com"]
[Date "2024.04.30"]
[Round "9"]
[White "Cacriefils1984"]
[Black "Janh4"]
[Result "1-0"]
[WhiteElo "2354"]
[BlackElo "2200"]
[TimeControl "180+1"]
[EndTime "15:44:42 PDT"]
[Termination "Cacriefils1984 won by checkmate"]

1. e4 {[%clk 0:03:00.9]} 1... c6 {[%clk 0:02:59.9]} 2. d4 {[%clk 0:02:59.8]}
2... d5 {[%clk 0:03:00.5]} 3. e5 {[%clk 0:03:00.3]} 3... c5 {[%clk 0:03:01]} 4.
dxc5 {[%clk 0:02:59.9]} 4... e6 {[%clk 0:03:00.4]} 5. Nf3 {[%clk 0:02:59.8]}
5... Bxc5 {[%clk 0:03:00.4]} 6. Bd3 {[%clk 0:02:59.7]} 6... Ne7 {[%clk
0:02:57.9]} 7. a3 {[%clk 0:02:59.8]} 7... Nbc6 {[%clk 0:02:55.5]} 8. O-O {[%clk
0:02:43]} 8... Ng6 {[%clk 0:02:52.1]} 9. Re1 {[%clk 0:02:41.9]} 9... Qb6 {[%clk
0:02:46.3]} 10. Qe2 {[%clk 0:02:38.5]} 10... Ngxe5 {[%clk 0:02:00.3]} 11. Nxe5
{[%clk 0:02:30.8]} 11... Nxe5 {[%clk 0:02:00.3]} 12. Qxe5 {[%clk 0:02:31.5]}
12... Bxf2+ {[%clk 0:02:00.4]} 13. Kh1 {[%clk 0:02:32.2]} 13... Bxe1 {[%clk
0:02:00.2]} 14. Qxe1 {[%clk 0:02:33.1]} 14... O-O {[%clk 0:01:56.5]} 15. Nc3
{[%clk 0:02:24.7]} 15... Bd7 {[%clk 0:01:55.9]} 16. b4 {[%clk 0:02:12.7]} 16...
Rac8 {[%clk 0:01:51.3]} 17. Bb2 {[%clk 0:02:11.6]} 17... a6 {[%clk 0:01:46.2]}
18. Qh4 {[%clk 0:01:56.4]} 18... f5 {[%clk 0:01:41.5]} 19. Qg3 {[%clk
0:01:52.9]} 19... Qc7 {[%clk 0:01:29.6]} 20. Qxc7 {[%clk 0:01:36.5]} 20... Rxc7
{[%clk 0:01:28.6]} 21. Ne2 {[%clk 0:01:37.4]} 21... Bb5 {[%clk 0:01:20.4]} 22.
Be5 {[%clk 0:01:33.7]} 22... Bxd3 {[%clk 0:01:13.6]} 23. cxd3 {[%clk 0:01:31.9]}
23... Rc2 {[%clk 0:01:05.8]} 24. Nf4 {[%clk 0:01:27.7]} 24... Rfc8 {[%clk
0:01:02.4]} 25. h4 {[%clk 0:01:20.9]} 25... Rc1+ {[%clk 0:01:00.9]} 26. Rxc1
{[%clk 0:01:21.5]} 26... Rxc1+ {[%clk 0:01:01.3]} 27. Kh2 {[%clk 0:01:22.4]}
27... Kf7 {[%clk 0:01:00.7]} 28. Kg3 {[%clk 0:01:12.9]} 28... g6 {[%clk
0:00:50.2]} 29. Kf2 {[%clk 0:01:09.5]} 29... Rc2+ {[%clk 0:00:48.4]} 30. Ke3
{[%clk 0:01:08.4]} 30... Ra2 {[%clk 0:00:48.3]} 31. Kd4 {[%clk 0:01:02.9]} 31...
Rxa3 {[%clk 0:00:43.5]} 32. Bd6 {[%clk 0:01:00.6]} 32... Ra1 {[%clk 0:00:19.3]}
33. Bc7 {[%clk 0:00:44.6]} 33... h6 {[%clk 0:00:17.2]} 34. Kc5 {[%clk
0:00:36.7]} 34... g5 {[%clk 0:00:16.8]} 35. hxg5 {[%clk 0:00:36.1]} 35... hxg5
{[%clk 0:00:17.4]} 36. Ne2 {[%clk 0:00:36.3]} 36... Ra2 {[%clk 0:00:14.9]} 37.
Nd4 {[%clk 0:00:35.3]} 37... Rxg2 {[%clk 0:00:14.7]} 38. Kb6 {[%clk 0:00:35.9]}
38... Rg4 {[%clk 0:00:14]} 39. Be5 {[%clk 0:00:34.2]} 39... Rg2 {[%clk 0:00:11]}
40. Kxb7 {[%clk 0:00:34.1]} 40... Rd2 {[%clk 0:00:11.2]} 41. Kxa6 {[%clk
0:00:30.1]} 41... Rxd3 {[%clk 0:00:11.3]} 42. b5 {[%clk 0:00:27.4]} 42... f4
{[%clk 0:00:08.1]} 43. b6 {[%clk 0:00:27.1]} 43... Ra3+ {[%clk 0:00:06.5]} 44.
Kb5 {[%clk 0:00:26.5]} 44... Ra1 {[%clk 0:00:06.4]} 45. Nb3 {[%clk 0:00:20.4]}
45... Rb1 {[%clk 0:00:03.3]} 46. Kb4 {[%clk 0:00:19.1]} 46... Rh1 {[%clk
0:00:01.8]} 47. b7 {[%clk 0:00:16.7]} 47... f3 {[%clk 0:00:02.4]} 48. b8=Q
{[%clk 0:00:16.4]} 48... f2 {[%clk 0:00:02.7]} 49. Qa7+ {[%clk 0:00:13.7]} 49...
Kg6 {[%clk 0:00:02.9]} 50. Qxf2 {[%clk 0:00:14.3]} 50... Rh4+ {[%clk 0:00:03.3]}
51. Ka3 {[%clk 0:00:13.8]} 51... Re4 {[%clk 0:00:03.5]} 52. Qf6+ {[%clk
0:00:14]} 52... Kh5 {[%clk 0:00:02.9]} 53. Qxe6 {[%clk 0:00:14.4]} 53... g4
{[%clk 0:00:02.2]} 54. Qxd5 {[%clk 0:00:14]} 54... Kh4 {[%clk 0:00:00.3]} 55.
Qxe4 {[%clk 0:00:13.1]} 55... Kh3 {[%clk 0:00:00.5]} 56. Qh1# {[%clk 0:00:12.3]}
1-0

[Event "Late-Titled-Tuesday-Blitz-April-30-2024"]
[Site "Chess.com"]
[Date "2024.04.30"]
[Round "9"]
[White "Romkachess"]
[Black "db-banana"]
[Result "1-0"]
[WhiteElo "2631"]
[BlackElo "2466"]
[TimeControl "180+1"]
[EndTime "15:44:45 PDT"]
[Termination "Romkachess won by resignation"]

1. e4 {[%clk 0:02:57]} 1... Nf6 {[%clk 0:02:59.4]} 2. e5 {[%clk 0:02:56.7]} 2...
Nd5 {[%clk 0:02:59.9]} 3. c4 {[%clk 0:02:56.9]} 3... Nb6 {[%clk 0:02:59.8]} 4.
d4 {[%clk 0:02:57.8]} 4... d6 {[%clk 0:02:59.9]} 5. exd6 {[%clk 0:02:58.7]} 5...
cxd6 {[%clk 0:03:00.6]} 6. Nf3 {[%clk 0:02:59]} 6... g6 {[%clk 0:03:01]} 7. Nc3
{[%clk 0:02:57.4]} 7... Bg7 {[%clk 0:03:01.1]} 8. Be3 {[%clk 0:02:57.8]} 8...
O-O {[%clk 0:03:01.4]} 9. Rc1 {[%clk 0:02:53.6]} 9... Nc6 {[%clk 0:02:49.7]} 10.
b3 {[%clk 0:02:51.6]} 10... Bg4 {[%clk 0:02:48.7]} 11. Be2 {[%clk 0:02:50.8]}
11... Re8 {[%clk 0:02:46.3]} 12. O-O {[%clk 0:02:49.9]} 12... e5 {[%clk
0:02:41.1]} 13. dxe5 {[%clk 0:02:47]} 13... dxe5 {[%clk 0:02:39.1]} 14. h3
{[%clk 0:02:39.5]} 14... Be6 {[%clk 0:02:25.1]} 15. Nb5 {[%clk 0:02:39.1]} 15...
Qe7 {[%clk 0:01:57.1]} 16. Qd6 {[%clk 0:02:30.5]} 16... Red8 {[%clk 0:01:48.3]}
17. Qxe7 {[%clk 0:02:29]} 17... Nxe7 {[%clk 0:01:49.2]} 18. Nc7 {[%clk
0:02:12.4]} 18... Rac8 {[%clk 0:01:40.3]} 19. Nxe6 {[%clk 0:02:10.1]} 19... fxe6
{[%clk 0:01:33.6]} 20. Ng5 {[%clk 0:02:05.3]} 20... Nf5 {[%clk 0:01:34.1]} 21.
Nxe6 {[%clk 0:02:00.8]} 21... Re8 {[%clk 0:01:26.1]} 22. Nxg7 {[%clk 0:01:56.5]}
22... Kxg7 {[%clk 0:01:25.5]} 23. Bd2 {[%clk 0:01:44.6]} 23... Nd4 {[%clk
0:01:23.7]} 24. Bd1 {[%clk 0:01:44.6]} 24... Nd7 {[%clk 0:01:16.6]} 25. Bc3
{[%clk 0:01:43]} 25... Nc5 {[%clk 0:01:14.5]} 26. f4 {[%clk 0:01:35.2]} 26...
Ne4 {[%clk 0:01:06]} 27. Bb2 {[%clk 0:01:17.4]} 27... Kg8 {[%clk 0:00:56.1]} 28.
fxe5 {[%clk 0:01:14.6]} 28... Nf5 {[%clk 0:00:56.7]} 29. Bg4 {[%clk 0:01:10.6]}
29... Neg3 {[%clk 0:00:48.5]} 30. Rfe1 {[%clk 0:01:06.6]} 30... Rcd8 {[%clk
0:00:46.7]} 31. Rcd1 {[%clk 0:00:55.3]} 31... Rxd1 {[%clk 0:00:46.5]} 32. Rxd1
{[%clk 0:00:56.2]} 32... Kf7 {[%clk 0:00:45.7]} 33. Rd7+ {[%clk 0:00:53.1]}
33... Re7 {[%clk 0:00:44.6]} 34. Rxe7+ {[%clk 0:00:51.4]} 34... Kxe7 {[%clk
0:00:45]} 35. Kf2 {[%clk 0:00:44.6]} 35... Ne4+ {[%clk 0:00:40.8]} 36. Ke2
{[%clk 0:00:33.1]} 36... Ke6 {[%clk 0:00:40.3]} 37. Bf3 {[%clk 0:00:29.7]} 37...
Nc5 {[%clk 0:00:38.3]} 38. Bd5+ {[%clk 0:00:28.2]} 38... Ke7 {[%clk 0:00:36.9]}
39. g4 {[%clk 0:00:24.2]} 39... Ng7 {[%clk 0:00:29.1]} 40. Ba3 {[%clk
0:00:19.5]} 40... b6 {[%clk 0:00:29.6]} 41. b4 {[%clk 0:00:15.5]} 41... Nd7
{[%clk 0:00:29.9]} 42. Bb2 {[%clk 0:00:14.4]} 42... Ne6 {[%clk 0:00:29.6]} 43.
Ke3 {[%clk 0:00:11.8]} 43... g5 {[%clk 0:00:25.5]} 44. Be4 {[%clk 0:00:11]}
44... Nf4 {[%clk 0:00:24.5]} 45. Bxh7 {[%clk 0:00:09.1]} 45... Nxh3 {[%clk
0:00:25.2]} 46. Bf5 {[%clk 0:00:08.5]} 46... Nf4 {[%clk 0:00:18.6]} 47. Ke4
{[%clk 0:00:08.7]} 47... Nf8 {[%clk 0:00:14.2]} 48. Bc1 {[%clk 0:00:08]} 48...
N8e6 {[%clk 0:00:11]} 49. Bxf4 {[%clk 0:00:07.8]} 49... Nxf4 {[%clk 0:00:10.8]}
50. c5 {[%clk 0:00:08]} 50... bxc5 {[%clk 0:00:11]} 51. bxc5 {[%clk 0:00:08.6]}
51... Nh3 {[%clk 0:00:09.1]} 52. c6 {[%clk 0:00:07.6]} 52... Kd8 {[%clk
0:00:08.9]} 53. Kd5 {[%clk 0:00:06.1]} 53... Nf4+ {[%clk 0:00:08.9]} 54. Kd6
{[%clk 0:00:06.1]} 54... Nd5 {[%clk 0:00:04.8]} 55. Kxd5 {[%clk 0:00:05.7]} 1-0

[Event "Late-Titled-Tuesday-Blitz-April-30-2024"]
[Site "Chess.com"]
[Date "2024.04.30"]
[Round "9"]
[White "dealshark"]
[Black "Nemsko"]
[Result "1/2-1/2"]
[WhiteElo "2316"]
[BlackElo "2446"]
[TimeControl "180+1"]
[EndTime "15:44:49 PDT"]
[Termination "Game drawn by repetition"]

1. e4 {[%clk 0:03:00.9]} 1... e5 {[%clk 0:02:58.5]} 2. Nf3 {[%clk 0:03:00.6]}
2... Nc6 {[%clk 0:02:58.8]} 3. Bb5 {[%clk 0:03:00.3]} 3... a6 {[%clk 0:02:58.6]}
4. Ba4 {[%clk 0:02:59.7]} 4... Nf6 {[%clk 0:02:58.7]} 5. d3 {[%clk 0:02:59.2]}
5... b5 {[%clk 0:02:58.9]} 6. Bb3 {[%clk 0:02:59.1]} 6... Be7 {[%clk 0:02:59.1]}
7. O-O {[%clk 0:02:57.6]} 7... O-O {[%clk 0:02:57.7]} 8. c3 {[%clk 0:02:57.8]}
8... d6 {[%clk 0:02:58]} 9. Nbd2 {[%clk 0:02:55.6]} 9... Be6 {[%clk 0:02:52.8]}
10. Bc2 {[%clk 0:02:49.1]} 10... d5 {[%clk 0:02:47]} 11. exd5 {[%clk 0:02:37.9]}
11... Nxd5 {[%clk 0:02:47.9]} 12. Ne4 {[%clk 0:02:32]} 12... f6 {[%clk
0:02:45.5]} 13. Re1 {[%clk 0:02:28.9]} 13... Qd7 {[%clk 0:02:41]} 14. d4 {[%clk
0:02:13.3]} 14... exd4 {[%clk 0:02:39.7]} 15. Nxd4 {[%clk 0:02:10.1]} 15... Nxd4
{[%clk 0:02:36.6]} 16. Qxd4 {[%clk 0:02:11]} 16... Bf7 {[%clk 0:02:30.5]} 17.
Nc5 {[%clk 0:01:52]} 17... Qd6 {[%clk 0:02:18.1]} 18. Qe4 {[%clk 0:01:32.8]}
18... Bg6 {[%clk 0:02:04.2]} 19. Qxd5+ {[%clk 0:01:28.4]} 19... Qxd5 {[%clk
0:02:04]} 20. Bb3 {[%clk 0:01:27]} 20... Qxb3 {[%clk 0:02:03.2]} 21. Nxb3 {[%clk
0:01:26.9]} 21... Bd6 {[%clk 0:02:02.5]} 22. Be3 {[%clk 0:01:25.5]} 22... Rfe8
{[%clk 0:02:01.4]} 23. Bc5 {[%clk 0:01:23.3]} 23... Be5 {[%clk 0:01:56.5]} 24.
Bd4 {[%clk 0:01:22.3]} 24... Bf4 {[%clk 0:01:55.1]} 25. Rad1 {[%clk 0:01:19.7]}
25... Bc2 {[%clk 0:01:48.3]} 26. Ra1 {[%clk 0:01:18.5]} 26... Kf7 {[%clk
0:01:42.5]} 27. g3 {[%clk 0:01:16.7]} 27... Bxb3 {[%clk 0:01:10.3]} 28. axb3
{[%clk 0:01:13.8]} 28... Bd6 {[%clk 0:01:10.5]} 29. Rxe8 {[%clk 0:01:12]} 29...
Kxe8 {[%clk 0:01:11.4]} 30. Kg2 {[%clk 0:01:09.4]} 30... c5 {[%clk 0:01:11.3]}
31. Be3 {[%clk 0:01:07.5]} 31... Kd7 {[%clk 0:01:11.9]} 32. Kf3 {[%clk
0:01:06.8]} 32... Kc6 {[%clk 0:01:12.2]} 33. c4 {[%clk 0:01:05.9]} 33... Kb6
{[%clk 0:00:56.1]} 34. Rd1 {[%clk 0:00:57.8]} 34... Kc6 {[%clk 0:00:53.6]} 35.
Bf4 {[%clk 0:00:51.8]} 35... Bxf4 {[%clk 0:00:44.6]} 36. Kxf4 {[%clk 0:00:52.7]}
36... Re8 {[%clk 0:00:43.2]} 37. Rd2 {[%clk 0:00:48]} 37... Re7 {[%clk
0:00:31.9]} 38. h4 {[%clk 0:00:47.5]} 38... bxc4 {[%clk 0:00:19.8]} 39. bxc4
{[%clk 0:00:47.2]} 39... Kb6 {[%clk 0:00:17.7]} 40. h5 {[%clk 0:00:37.7]} 40...
h6 {[%clk 0:00:16.5]} 41. Kf5 {[%clk 0:00:37.2]} 41... Ka5 {[%clk 0:00:11.8]}
42. b3 {[%clk 0:00:22.9]} 42... Kb4 {[%clk 0:00:11.9]} 43. Rd3 {[%clk 0:00:23]}
43... a5 {[%clk 0:00:10.2]} 44. g4 {[%clk 0:00:21.4]} 44... a4 {[%clk
0:00:09.3]} 45. bxa4 {[%clk 0:00:20.3]} 45... Kxa4 {[%clk 0:00:10.2]} 46. Re3
{[%clk 0:00:10.9]} 46... Rc7 {[%clk 0:00:03.6]} 47. Kg6 {[%clk 0:00:08.7]} 47...
Kb4 {[%clk 0:00:03.8]} 48. Re4 {[%clk 0:00:09.2]} 48... Kc3 {[%clk 0:00:04.2]}
49. f3 {[%clk 0:00:09.2]} 49... Kd3 {[%clk 0:00:04.4]} 50. Kh7 {[%clk
0:00:07.4]} 50... Rd7 {[%clk 0:00:03.7]} 51. Kg6 {[%clk 0:00:07.4]} 51... Rc7
{[%clk 0:00:04.2]} 52. Rf4 {[%clk 0:00:07]} 52... Re7 {[%clk 0:00:03.8]} 53. Re4
{[%clk 0:00:06.5]} 53... Rd7 {[%clk 0:00:01.9]} 54. Rf4 {[%clk 0:00:06.8]} 54...
Re7 {[%clk 0:00:02.4]} 55. Re4 {[%clk 0:00:07.3]} 55... Rd7 {[%clk 0:00:03.1]}
56. Kf5 {[%clk 0:00:07.9]} 56... Rc7 {[%clk 0:00:03.2]} 57. Kg6 {[%clk
0:00:08.4]} 57... Rd7 {[%clk 0:00:03.5]} 1/2-1/2